Cogmind - Beta 13 @@@ ROGUE MODE // 2024.05.23 @ 20:23:44 Player: Sunsh1n3 Result: Destroyed by D-53 Grenadier with Mini Grenade Launcher Performance ------------- Evolutions (1) 500 Regions Visited (3) 600 Robots Destroyed (7) 35 Value Destroyed (135) 135 Prototype IDs (1) 20 Alien Tech Used (0) 0 Bonus (200) 200 TOTAL SCORE: 1490 Bonus ------- Pacifist 200 Cogmind --------- Core Integrity 0/400 Matter 339/400 Energy 234/250 System Corruption 0% Temperature Cool (40) Movement Walking (120) Location -9/Mines Parts ------- > --- POWER (1) -------- Ion Engine > --- PROPULSION (4) --- Aluminum Leg Carbon-fiber Leg Carbon-fiber Leg Improved Flight Unit > --- UTILITY (2) ------ Large Storage Unit Medium Matter Pod > --- WEAPON (2) ------- Spread Laser > --- INVENTORY (15) --- Sensor Array Signal Interpreter Improved Targeting Computer EM Pulse Gun Medium Laser Light Assault Rifle Shotgun Peak State ------------ > --- POWER ------------ Ion Engine > --- PROPULSION ------- Aluminum Leg Carbon-fiber Leg Carbon-fiber Leg Improved Flight Unit > --- UTILITY ---------- Large Storage Unit Medium Matter Pod > --- WEAPON ----------- Spread Laser > --- INVENTORY -------- Sensor Array Signal Interpreter Improved Targeting Computer EM Pulse Gun Medium Laser Light Assault Rifle Shotgun Mining Laser [Rating: 16] Favorites ----------- Power Ion Engine Engine Ion Engine Propulsion Light Treads Treads Light Treads Leg Aluminum Leg Flight Unit Improved Flight Unit Utility Medium Matter Pod Storage Medium Matter Pod Weapon Light Assault Rifle Energy Gun Medium Laser Ballistic Gun Light Assault Rifle Launcher Grenade Launcher Special Weapon Mining Laser Build | -11 -10 -9 -9 ------- Run | Yrd Mat Mat Min Slots Evolved 2 | . . 2 . Power . | . . . . Propulsion 2 | . . 2 . Utility . | . . . . Weapon . | . . . . Parts Attached 24 | 6 1 8 9 Power 2 | 1 . . 1 Engine 2 | 1 . . 1 Core . | . . . . Reactor . | . . . . Propulsion 11 | 2 . 5 4 Treads 3 | . . 3 . Leg 6 | 2 . 1 3 Wheel . | . . . . Hover . | . . . . Flight 2 | . . 1 1 Utility 3 | 1 1 1 . Device . | . . . . Storage 3 | 1 1 1 . Processor . | . . . . Hackware . | . . . . Protection . | . . . . Artifact . | . . . . Weapon 8 | 2 . 2 4 Energy Gun 3 | . . 1 2 Energy Cannon . | . . . . Ballistic Gun 3 | 2 . 1 . Ballistic Cannon . | . . . . Launcher 1 | . . . 1 Special Weapon 1 | . . . 1 Impact Weapon . | . . . . Slashing Weapon . | . . . . Piercing Weapon . | . . . . Special Melee Weapon . | . . . . Unidentified Prototypes 1 | . . 1 . Parts Lost 9 | . . . 9 Power 1 | . . . 1 Propulsion 4 | . . . 4 Utility . | . . . . Weapon 4 | . . . 4 Highest Loss Streak 8 | . . . 8 To Critical Strikes 1 | . . . 1 Average Slot Usage (%) 95 | . 96 100 74 Engine 11 | . 14 11 9 Treads 20 | . . 32 2 Leg 16 | . 28 11 17 Storage 22 | . 24 22 22 Energy Gun 6 | . . 8 9 Ballistic Gun 15 | . 28 13 1 Naked Turns . | . . . . Heaviest Build 32 | 12 14 32 32 Greatest Support 60 | 20 20 60 60 Greatest Overweight (x) 9 | 3 . . 9 Average Overweight (x) . | . . . . Largest Inventory Capacity 15 | 8 8 15 15 Average Capacity 10 | 7 8 11 15 Most Carried 12 | 4 8 12 12 Average Carried 7 | 2 6 9 8 Final Capacity 15 | 8 8 15 15 Final Carried 12 | 4 8 12 7 Class Distribution -------------------- 100% | Mutant Dominant Class ---------------- Mutant | -10/Materials Mutant | -9/Materials Mutant | -9/Mines Resources | -11 -10 -9 -9 ----------- Run | Yrd Mat Mat Min Matter Collected 504 | 254 122 88 40 Remotely . | . . . . Salvage Created 219 | . . 174 45 Parts 13 | . . 13 . Haulers Intercepted . | . . . . Recyclers Shooed 1 | . . 1 . Parts Field Recycled . | . . . . Retrieved Matter . | . . . . Parts Self-Destructed . | . . . . Prevented . | . . . . Kills | -11 -10 -9 -9 ------- Run | Yrd Mat Mat Min Combat Hostiles Destroyed 23 | . . 6 17 Guns 10 | . . 5 5 AOE 12 | . . . 12 Classes Destroyed 5 | . . 4 1 Watcher 1 | . . 1 . Swarmer 4 | . . 4 . Grunt 1 | . . 1 . Sentry 1 | . . 1 . Assembled 17 | . . . 17 Best Kill Streak 17 | . . 4 17 Combat Bots Only 17 | . . 4 17 Max Kills in Single Turn 8 | . . 1 8 Gunslinging . | . . . . Exploded 7 | . . . 7 Melee . | . . . . Uniques/NPCs Destroyed . | . . . . Combat | -11 -10 -9 -9 -------- Run | Yrd Mat Mat Min Hostile Shots Fired 121 | . . 35 86 Missed 19 | . . 8 11 Damage Taken 1571 | . . 302 1269 Core 425 | . . 45 380 Absorbed by Shields . | . . . . Core Remaining (%) 100 | 100 100 . . Volleys Fired 38 | . 3 20 15 Largest 2 | . 2 2 2 Hottest 165 | . 40 70 165 Shots Fired 66 | . 6 40 20 Gun 63 | . 6 40 17 Cannon . | . . . . Launcher 2 | . . . 2 Special 1 | . . . 1 Kinetic 32 | . 6 20 6 Thermal 32 | . . 20 12 Explosive 2 | . . . 2 Electromagnetic . | . . . . Robot Hit Streak 10 | . 1 10 5 Robot Miss Streak 3 | . 2 3 3 Penetration Max . | . . . . Secondary Targets . | . . . . Shots Hit Robots 40 | . 3 24 13 Core Hits 53 | . 1 9 43 Critical Kills . | . . . . Critical Parts Destroyed . | . . . . Critical Strikes 2 | . . 2 . Burn 2 | . . 2 . Melee Attacks . | . . . . Impact . | . . . . Slashing . | . . . . Piercing . | . . . . Sneak Attacks . | . . . . Combat Hostiles . | . . . . Follow-up Attacks . | . . . . Damage Inflicted 1272 | . 24 249 999 Guns 424 | . 24 245 155 Cannons . | . . . . Explosions 844 | . . . 844 Melee . | . . . . Ramming 4 | . . 4 . Kinetic 159 | . 24 95 40 Thermal 265 | . . 150 115 Explosive 844 | . . . 844 Electromagnetic . | . . . . Impact . | . . . . Slashing . | . . . . Piercing . | . . . . Highest Corruption . | . . . . Average Corruption . | . . . . Corruption Purged . | . . . . Corruption Blocked . | . . . . Overload Shots . | . . . . Overflow Damage 2 | . . . 2 Projectiles . | . . . . Explosions 2 | . . . 2 Melee . | . . . . Knockbacks . | . . . . Impact . | . . . . Kinetic . | . . . . Secondary . | . . . . Self-Inflicted Damage 13 | . . . 13 Shots 1 | . . . 1 Rammed 1 | . . 1 . Targets Rammed 1 | . . 1 . Kicked . | . . . . Crushed . | . . . . Highest Temperature 152 | . . 77 152 Average Temperature 50 | . . 37 69 Received Heat Transfer 243 | . . 63 180 Siege Activations . | . . . . Robots Corrupted . | . . . . Combat Hostiles . | . . . . Parts Fried . | . . . . Impact Corruptions . | . . . . Robots Melted 1 | . . 1 . Combat Hostiles 1 | . . 1 . Parts Melted 4 | . . 4 . Heat Transferred 769 | . . 592 177 Parts Sabotaged . | . . . . Parts Stolen . | . . . . Parts Stripped . | . . . . Power Chain Reactions . | . . . . Alert | -11 -10 -9 -9 ------- Run | Yrd Mat Mat Min Peak Influence 195 | . 20 195 15 Initial 8 | . . 8 . Average 51 | . 7 90 1 Maximum Alert Level . | . . . . Low Security (%) 100 | 100 100 100 100 Level 1 . | . . . . Level 2 . | . . . . Level 3 . | . . . . Level 4 . | . . . . Level 5 . | . . . . High Security . | . . . . Max Security . | . . . . Squads Dispatched 1 | . . 1 . Investigation . | . . . . Extermination . | . . . . Reinforcement 1 | . . 1 . Assault . | . . . . Garrison . | . . . . Intercept . | . . . . Searches Triggered . | . . . . Construction Impeded . | . . . . Haulers Reinforced . | . . . . Active Scanning Responses . | . . . . Cargo Convoy Interrupts . | . . . . Stealth | -11 -10 -9 -9 --------- Run | Yrd Mat Mat Min Distress Signals . | . . . . Communications Jammed . | . . . . Distress Signals . | . . . . Times Spotted 30 | . 1 9 20 Peak Tracking Total 18 | . 1 4 18 Tactical Retreats . | . . . . Traps | -11 -10 -9 -9 ------- Run | Yrd Mat Mat Min Traps Triggered . | . . . . Indirectly . | . . . . Trap Hack Attempts . | . . . . Triggered . | . . . . Disarmed . | . . . . Reprogrammed . | . . . . Reused . | . . . . Traps Extracted . | . . . . Installed . | . . . . Triggered . | . . . . Machines | -11 -10 -9 -9 ---------- Run | Yrd Mat Mat Min Machines Disabled . | . . . . Max in Single Turn . | . . . . Machines Repaired . | . . . . Machines Dismantled . | . . . . Machines Sabotaged . | . . . . Overloaded Fab Kills . | . . . . Hacking | -11 -10 -9 -9 --------- Run | Yrd Mat Mat Min Machines Accessed 2 | . 1 1 . Terminals 1 | . 1 . . Fabricators . | . . . . Repair Stations . | . . . . Recycling Units 1 | . . 1 . Scanalyzers . | . . . . Garrison Access . | . . . . Total Hacks 4 | . 1 3 . Successful 2 | . 1 1 . Failed 2 | . . 2 . Catastrophic . | . . . . Database Lockouts . | . . . . Manual . | . . . . Terminals 1 | . 1 . . Fabricators . | . . . . Repair Stations . | . . . . Recycling Units 3 | . . 3 . Scanalyzers . | . . . . Garrison Access . | . . . . Terminal Hacks 1 | . 1 . . Transport Status 1 | . 1 . . Fabricator Hacks . | . . . . Repair Station Hacks . | . . . . Recycling Unit Hacks 1 | . . 1 . Report Inventory 1 | . . 1 . Scanalyzer . | . . . . Garrison Access Hacks . | . . . . Unauthorized Hacks . | . . . . Terminals . | . . . . Fabricators . | . . . . Repair Stations . | . . . . Recycling Units . | . . . . Scanalyzers . | . . . . Garrison Access . | . . . . Data Cores Recovered . | . . . . Used . | . . . . Hacking Detections 2 | . 1 1 . Full Trace Events . | . . . . Feedback Events . | . . . . Feedback Blocked . | . . . . Robot Schematics Acquired . | . . . . Robots Built . | . . . . Authchips . | . . . . Time . | . . . . Total Robot Build Rating . | . . . . Part Schematics Acquired . | . . . . Parts Built . | . . . . Authchips . | . . . . Time . | . . . . Total Part Build Rating . | . . . . Parts Repaired . | . . . . Time . | . . . . Parts Recycled . | . . . . Recycled Matter . | . . . . Retrieved Matter . | . . . . Retrieved Components . | . . . . Parts Scanalyzed . | . . . . Part Schematics Acquired . | . . . . Parts Damaged . | . . . . Bothacking | -11 -10 -9 -9 ------------ Run | Yrd Mat Mat Min Used RIF Installer . | . . . . Robots Hacked . | . . . . Non-combat . | . . . . Combat . | . . . . Robot Hacks Applied . | . . . . Relay Couplers Released . | . . . . Fabnet Peak Effective % . | . . . . Robots Rewired . | . . . . Allies Hacked . | . . . . Hacks Repelled . | . . . . Allies | -11 -10 -9 -9 -------- Run | Yrd Mat Mat Min Total Allies 1 | . . . 1 Largest Group . | . . . . Highest-Rated Group . | . . . . Highest-Rated Ally . | . . . . Total Orders . | . . . . Ally Attacks 1 | . . . 1 Total Damage 22 | . . . 22 Kills . | . . . . Allies Corrupted . | . . . . Allies Melted . | . . . . Intel | -11 -10 -9 -9 ------- Run | Yrd Mat Mat Min Robot Analysis Total . | . . . . Derelict Logs Recovered . | . . . . Drone Launches . | . . . . Drone Recoveries . | . . . . Exploration | -11 -10 -9 -9 ------------- Run | Yrd Mat Mat Min Turns Passed 908 | 74 205 500 129 Spaces Moved 520 | 49 160 257 54 Core 9 | 6 . . 3 Treads 262 | . . 257 5 Legs 249 | 43 160 . 46 Wheels . | . . . . Hover . | . . . . Flight . | . . . . Fastest Speed 50 | 50 120 160 120 Average Speed 142 | 120 120 160 144 Slowest Speed 500 | 200 120 160 500 Overloaded Moves . | . . . . Propulsion Burnouts . | . . . . Robots Hopped . | . . . . Cave-ins Triggered . | . . . . Exploration Rate (%) 19 | 3 34 27 13 Regions Visited 3 Branch Regions 1 Pre-discovered Areas . | . . . . Known Exits Taken . | . . . . Unknown Exits Taken 3 | 1 1 1 . Scrap Searched . | . . . . Spaces Dug . | . . . . Terrain Destroyed 8 | . . . 8 Melee . | . . . . Projectile . | . . . . AOE 8 | . . . 8 Terrain Rammed . | . . . . Walls Destroyed . | . . . . Machines Disabled . | . . . . Actions | -11 -10 -9 -9 --------- Run | Yrd Mat Mat Min Total 624 | 64 168 308 84 Wait 15 | . . 12 3 Move 517 | 48 159 256 54 Hop . | . . . . Pick Up 26 | 10 5 8 3 Fast Attach . | . . . . Attach 17 | 6 1 2 8 Detach . | . . . . Swap 7 | . . 6 1 Drop 3 | . . 3 . Fire 38 | . 3 20 15 Melee . | . . . . Ram . | . . . . Kick . | . . . . Crush 1 | . . 1 . Escape Stasis . | . . . . Rewire . | . . . . Trap . | . . . . Miscellaneous . | . . . . Route ------- -11/Scrapyard -10/Materials -9/Materials -9/Mines History --------- Turn | Location | Event 6 | -11/Scrapyard | Discovered new exit (range 16) 75 | -11/Scrapyard | Entered Materials 249 | -10/Materials | Discovered new exit (range 8) 280 | -10/Materials | Entered another Materials area 280 | -9/Materials | Evolved 2 slots: Propulsion x2 313 | -9/Materials | Build established: Mutant 764 | -9/Materials | Discovered new exit (range 10) 780 | -9/Materials | Entered Mines 781 | -9/Mines | Assembled infested the area 783 | -9/Mines | Received a Mining Laser from a helpful Derelict 805 | -9/Mines | Core integrity fell below 50% 812 | -9/Mines | Core integrity fell below 20% 842 | -9/Mines | Destroyed 17 combat bots 849 | -9/Mines | Lost 8 parts (1p4n3w) 909 | -9/Mines | Destroyed by D-53 Grenadier with Mini Grenade Launcher Last Messages --------------- 00798_ Destroyed Aluminum Leg. 00798_ as-94614 destroyed. 00800_ Ion Engine destroyed. 00801_ Grenade Launcher destroyed. 00803_ Autogun destroyed. 00808_ as-57499 destroyed. 00812_ as-42759 destroyed. [Achievement: Exterminator] 00814_ as-76410 destroyed. 00818_ Spread Laser destroyed. 00821_ as-07887 destroyed. 00824_ Acquired 2 matter. 00834_ Acquired Carbon-fiber Leg. 00845_ Acquired 17 matter. 00847_ Acquired Mining Laser. 00853_ Acquired 5 matter. 00856_ Acquired 6 matter. 00864_ Acquired 10 matter. 00908_ The unstable cave ceiling collapses. 00909_ Mining Laser destroyed. Map ----- +----------------------------------------------------+ | ?????????????????????????????????????????????????? | | ?????????????????????????????????????????????????? | | ?????????????????????????????????????????????????? | | ?????????????????????????????????????????????????? | | ?????????????????????????????????????????????????? | | ?????????????????????????????????????????????????? | | ?????????????????????????????????????????????????? | | ?????????????????????????????????????????????????? | | ?????????????????????????????????????????????????? | | ?????????????????????????????????????????????????? | | ?????????????????????????????????????????????????? | | ?????????????????????????????????????????????????? | | ?????????????????????????????????????????????????? | | ?????????????????????????????????????????????????? | | ?????????????????????????????????????????????????? | | ?????????????????????????????????????????????????? | | ???????????????????????????????????###???????????? | | ?????????????????????????????????? ???????????? | | ???????????????????????????????## #??????????? | | ?????????????????????????????? ??????????? | | ??????????????????????########% % ?????????? | | ?????????????????????## t $ ?????????? | | ?????????????????????# ?????????? | | ????????????????????### #???????????????? | | ????????????????????# d #?????????????????? | | ????????????????????# d @ #???????????????????? | | ????????????????????# #??????????????????? | | ??####??#######?????# #??????????????????? | | ?## ### # ##????## ##??????????????????? | | ?# ##??## ###???????????????????? | | ?# ##?# ######?????????????????????? | | ?# % #?# ##????????####?????????????? | | ??# % ### #####???# ##????????????? | | ??#### ##" ##?# #????????????? | | ?????## ## #????????????? | | ??????######## #????????????? | | ?????????????## ##### ##????????????? | | ??????????????####???###### #####?????????????? | | ??????????????????????????######?????????????????? | | ?????????????????????????????????????????????????? | | | | | | | | | | | | | | | | | | | | | +----------------------------------------------------+ Best States ------------- Heat Dissipation 28 Energy Generation 10 Energy Capacity 250 Matter Stores 400 Matter Capacity 400 Sight Range 16 Terrain Scan Density 10 Evasion (%) 55 Recoil Reduction 3 Item Schematics ----------------- None Robot Schematics ------------------ None Fabricated ------------ Nothing Alien Tech Used ----------------- None Achievements -------------- Exterminator Quick And Dirty Challenges ------------ None Game ------ Seed InsulationScrapNetwork Manual? 0 Play Time 00:11:00 Cumulative 10.4 hours Start 2024.05.23 @ 20:13:29 End 2024.05.23 @ 20:23:44 Sessions 1 Manual Loads 0 Difficulty Rogue Special Mode None Game No. 23 Rogue 23 Adventurer 0 Explorer 0 Win Type - Total 0 Types 0/0/0/0/0/0/0/0/0 Lore% 13 Gallery% 19 Achievement% 14 Wizard Run 0 Options --------- Layout 1 ASCII 0 Keyboard 0 Movement Mouse Keybinds 0 Fullscreen 2 Font 24/Smallcaps Map View 50x35 Zoom Use 0% Tactical HUD 1 Map Filters NONE Filters NONE Steam 1 RUN: 9188b5c2-1eb8-45e8-aa92-4e21716ee6ec